bitfinex/quotes_BTCUSD_20230107
["timestamp","ask_amount","ask_price","bid_price","bid_amount"]
[1673085506980,4.69252266,16942.0,16941.0,1.81076232]
[1673085507196,4.69274203,16942.0,16941.0,1.81076232]
[1673085507445,4.69252266,16942.0,16941.0,1.81076232]
[1673085507931,4.69252266,16942.0,16941.0,2.51076232]
[1673085508148,4.69274203,16942.0,16941.0,2.51076232]
[1673085509853,4.69252266,16942.0,16941.0,2.51076232]
[1673085511173,5.04692481,16942.0,16941.0,2.51076232]
[1673085511686,4.69252266,16942.0,16941.0,2.51076232]
[1673085513677,4.69274203,16942.0,16941.0,2.51076232]
[1673085513932,4.69274203,16942.0,16941.0,1.81076232]
[1673085515133,4.69274203,16942.0,16941.0,2.51076232]
[1673085515875,4.69252266,16942.0,16941.0,2.51076232]
[1673085516327,4.69274203,16942.0,16941.0,2.51076232]
[1673085516550,4.69252266,16942.0,16941.0,2.51076232]
[1673085517348,4.57031587,16942.0,16941.0,2.51076232]
[1673085517608,4.57053524,16942.0,16941.0,2.51076232]
[1673085517859,4.57031587,16942.0,16941.0,2.51076232]
[1673085518111,4.68471844,16942.0,16941.0,2.51076232]
[1673085518870,4.68493781,16942.0,16941.0,2.51076232]
[1673085519127,4.68471844,16942.0,16941.0,2.51076232]
[1673085520893,4.68471844,16942.0,16941.0,1.81076232]
[1673085521332,4.68493781,16942.0,16941.0,1.81076232]
[1673085521597,4.68471844,16942.0,16941.0,1.81076232]
[1673085522085,5.03912059,16942.0,16941.0,1.81076232]
[1673085522347,4.68471844,16942.0,16941.0,1.81076232]
[1673085522594,5.03933996,16942.0,16941.0,2.51076232]
[1673085522877,4.68471844,16942.0,16941.0,2.51076232]
[1673085523115,5.03912059,16942.0,16941.0,2.51076232]
[1673085523362,4.68471844,16942.0,16941.0,2.51076232]
[1673085524115,4.68493781,16942.0,16941.0,2.51076232]
[1673085524572,4.68471844,16942.0,16941.0,2.51076232]
[1673085525203,4.68493781,16942.0,16941.0,2.51076232]
[1673085526599,5.03933996,16942.0,16941.0,2.51076232]
[1673085526934,4.68493781,16942.0,16941.0,2.51076232]
[1673085527548,4.86221292,16942.0,16941.0,2.51076232]
[1673085528446,4.86199355,16942.0,16941.0,1.81076232]
[1673085528698,4.86221292,16942.0,16941.0,1.81076232]
[1673085528951,4.86221292,16942.0,16941.0,2.51076232]
[1673085534914,4.86221292,16942.0,16941.0,1.81076232]
[1673085535470,4.86199355,16942.0,16941.0,1.81076232]
[1673085535939,4.86199355,16942.0,16941.0,2.51076232]
[1673085538201,4.86199355,16942.0,16941.0,3.11830332]
[1673085538975,4.86199355,16942.0,16941.0,2.51076232]
[1673085540468,5.03919321,16942.0,16941.0,2.51076232]
[1673085540968,4.86221292,16942.0,16941.0,2.51076232]
[1673085541196,4.86199355,16942.0,16941.0,2.51076232]
[1673085541960,5.03941179,16942.0,16941.0,1.81076232]
[1673085542220,4.86199355,16942.0,16941.0,1.81076232]
[1673085542982,4.86199355,16942.0,16941.0,2.51076232]
[1673085543761,5.03919292,16942.0,16941.0,2.51076232]
[1673085544008,4.86199355,16942.0,16941.0,2.51076232]
[1673085544222,4.86221292,16942.0,16941.0,2.51076232]
[1673085544474,5.03918124,16942.0,16941.0,2.51076232]
[1673085544714,5.03918124,16942.0,16941.0,3.11830332]
[1673085545224,5.03940061,16942.0,16941.0,2.51076232]
[1673085545462,4.86221292,16942.0,16941.0,2.51076232]
[1673085548001,4.86199355,16942.0,16941.0,2.51076232]
[1673085548506,4.86199355,16942.0,16941.0,3.11830332]
[1673085548744,4.86199355,16942.0,16941.0,2.51076232]
[1673085548998,4.86199355,16942.0,16941.0,2.41830332]
[1673085549259,4.86199355,16942.0,16941.0,1.81076232]
[1673085550100,4.86199355,16942.0,16941.0,2.51076232]
[1673085550659,5.33390299,16942.0,16941.0,2.51076232]
[1673085550920,4.86199355,16942.0,16941.0,2.51076232]
[1673085551629,4.86221292,16942.0,16941.0,2.51076232]
[1673085552715,4.86221292,16942.0,16941.0,3.11830332]
[1673085552991,4.86221292,16942.0,16941.0,2.51076232]
[1673085555785,4.86199355,16942.0,16941.0,2.51076232]
[1673085557483,4.86199355,16942.0,16941.0,1.81076232]
[1673085558669,4.86199355,16942.0,16941.0,2.51076232]
[1673085559373,4.86221292,16942.0,16941.0,2.51076232]
[1673085561813,4.86199355,16942.0,16941.0,2.51076232]
[1673085562329,4.86199355,16942.0,16941.0,3.11830332]
[1673085562826,4.86199355,16942.0,16941.0,2.51076232]
[1673085563110,4.86221292,16942.0,16941.0,3.11830332]
[1673085563373,4.86199355,16942.0,16941.0,2.51076232]
[1673085564086,5.33412236,16942.0,16941.0,2.51076232]
[1673085564343,4.86221292,16942.0,16941.0,2.51076232]
[1673085564588,4.86221292,16942.0,16941.0,1.81076232]
[1673085565069,4.86199355,16942.0,16941.0,1.81076232]
[1673085565350,4.86221292,16942.0,16941.0,1.22448332]
[1673085565599,4.86221292,16942.0,16941.0,1.92448332]
[1673085569158,4.86199355,16942.0,16941.0,1.92448332]
[1673085571648,4.86199355,16942.0,16941.0,1.22448332]
[1673085572634,5.30490145,16942.0,16941.0,1.92448332]
[1673085572874,4.86221292,16942.0,16941.0,1.92448332]
[1673085576604,4.86199355,16942.0,16941.0,1.92448332]
[1673085578733,4.86199355,16942.0,16941.0,1.22448332]
[1673085579623,4.86199355,16942.0,16941.0,1.92448332]
[1673085579976,4.86221292,16942.0,16941.0,1.92448332]
[1673085580549,5.30512082,16942.0,16941.0,1.92448332]
[1673085580871,4.86221292,16942.0,16941.0,1.92448332]
[1673085582908,4.86221292,16942.0,16941.0,2.53202432]
[1673085583375,4.86221292,16942.0,16941.0,1.92448332]
[1673085583857,5.30490145,16942.0,16941.0,1.92448332]
[1673085585029,5.30490145,16942.0,16941.0,2.04254032]
[1673085585532,5.03912025,16942.0,16941.0,2.04254032]
[1673085585777,5.03912025,16942.0,16941.0,1.34254032]
[1673085586089,5.30491453,16942.0,16941.0,1.34254032]
[1673085587119,5.51102969,16942.0,16941.0,1.49300467]
[1673085587433,6.19058889,16942.0,16941.0,0.899057]
[1673085587694,5.7022104,16942.0,16941.0,0.89896673]
[1673085587945,6.61706605,16942.0,16941.0,0.89896673]
[1673085594099,6.17411984,16942.0,16941.0,0.89896673]
[1673085594363,6.76799697,16942.0,16941.0,0.89896673]
[1673085594647,6.61684775,16942.0,16941.0,0.89896673]
[1673085596588,6.61684775,16942.0,16941.0,0.19896673]
[1673085597635,6.61684775,16942.0,16941.0,0.89896673]
[1673085601909,6.60890375,16942.0,16941.0,0.89896673]
[1673085602154,6.60890375,16942.0,16941.0,0.89656685]
[1673085602756,6.60868438,16942.0,16941.0,0.89656685]
[1673085603242,6.60370538,16942.0,16941.0,0.89656685]
[1673085603488,6.60370538,16942.0,16941.0,0.19656685]
[1673085604364,6.60370538,16942.0,16941.0,0.89656685]
[1673085605785,6.35022839,16942.0,16941.0,0.89656685]
[1673085606309,6.95798876,16942.0,16941.0,0.89656685]
[1673085609730,6.60392475,16942.0,16941.0,0.89656685]
[1673085610495,6.60392475,16942.0,16941.0,0.19656685]
[1673085611478,6.60392475,16942.0,16941.0,0.89656685]
[1673085613749,6.95800244,16942.0,16941.0,0.89656685]
[1673085614810,6.60392475,16942.0,16941.0,0.89656685]
[1673085615292,6.95801705,16942.0,16941.0,0.89656685]
[1673085617109,6.60392475,16942.0,16941.0,0.89656685]
[1673085617370,6.60392475,16942.0,16941.0,0.19656685]
[1673085618408,6.60392475,16942.0,16941.0,0.89656685]
[1673085618884,5.99638375,16942.0,16941.0,0.89656685]
[1673085623302,5.55365584,16942.0,16941.0,0.89656685]
[1673085624651,5.55365584,16942.0,16941.0,0.19649701]
[1673085624867,6.16119684,16942.0,16941.0,0.19649701]
[1673085625603,6.16119684,16942.0,16941.0,0.89649701]
[1673085625916,5.55365584,16942.0,16941.0,0.89649701]
[1673085632067,6.08418026,16942.0,16941.0,0.89649701]
[1673085632311,5.55365584,16942.0,16941.0,0.89649701]
[1673085636749,5.55343647,16942.0,16941.0,0.89649701]
[1673085637008,5.55343647,16942.0,16941.0,0.19649701]
[1673085638063,5.55343647,16942.0,16941.0,0.89649701]
[1673085640283,5.55365584,16942.0,16941.0,0.89649701]
[1673085643010,5.38035584,16942.0,16941.0,0.89649701]
[1673085644033,5.38035584,16942.0,16941.0,0.19649701]
[1673085645059,5.38035584,16942.0,16941.0,0.8964329]
[1673085645060,5.98789684,16942.0,16941.0,0.8964329]
[1673085645312,5.38035584,16942.0,16941.0,0.8964329]
[1673085649212,5.38013647,16942.0,16941.0,0.8964329]
[1673085652768,5.38035584,16942.0,16941.0,0.8964329]
[1673085653723,5.38035584,16942.0,16941.0,0.1964329]
[1673085654481,5.98789684,16942.0,16941.0,0.1964329]
[1673085654724,5.98789684,16942.0,16941.0,0.8964329]
[1673085654981,5.38035584,16942.0,16941.0,0.8964329]
[1673085655425,5.91088026,16942.0,16941.0,0.8964329]
[1673085656184,5.38035584,16942.0,16941.0,0.8964329]
[1673085657946,5.91088026,16942.0,16941.0,0.8964329]
[1673085658465,5.38035584,16942.0,16941.0,0.8964329]
[1673085658710,5.91088026,16942.0,16941.0,0.8964329]
[1673085659211,4.90822703,16942.0,16941.0,0.8964329]
[1673085659725,5.38013647,16942.0,16941.0,0.8964329]
[1673085661470,5.98767747,16942.0,16941.0,0.8964329]
[1673085662368,5.98789684,16942.0,16941.0,0.8964329]
[1673085665668,5.98767747,16942.0,16941.0,0.8964329]
[1673085667547,5.98767747,16942.0,16941.0,0.8963555]
[1673085668477,5.98767747,16942.0,16941.0,0.1963555]
[1673085669257,5.98789684,16942.0,16941.0,0.1963555]
[1673085669507,5.98789684,16942.0,16941.0,0.8963555]
[1673085671620,5.38035584,16942.0,16941.0,0.8963555]
[1673085677631,5.38035584,16942.0,16941.0,0.1963555]
[1673085678131,5.98767747,16942.0,16941.0,0.1963555]
[1673085678386,5.51576803,16942.0,16941.0,0.1963555]
[1673085678645,5.38013647,16942.0,16941.0,0.1963555]
[1673085679156,5.38013647,16942.0,16941.0,0.8963555]
[1673085679413,4.90822703,16942.0,16941.0,0.8963555]
[1673085681797,4.9084464,16942.0,16941.0,0.8963555]
[1673085684749,5.38035584,16942.0,16941.0,0.8963555]
[1673085685026,5.38035584,16942.0,16941.0,0.1963555]
[1673085685273,5.98789684,16942.0,16941.0,0.8963555]
[1673085688381,5.98767747,16942.0,16941.0,0.8963555]
[1673085689064,5.98767747,16942.0,16941.0,0.8962656]
[1673085689805,5.38013647,16942.0,16941.0,0.8962656]
[1673085690563,5.98767747,16942.0,16941.0,0.8962656]
[1673085691335,5.98767747,16942.0,16941.0,0.1962656]
[1673085691607,6.51820189,16942.0,16941.0,0.8962656]
[1673085691865,6.51842126,16942.0,16941.0,0.8962656]
[1673085692350,5.91088026,16942.0,16941.0,0.8962656]
[1673085694354,6.51842126,16942.0,16941.0,0.8962656]
[1673085696330,5.91088026,16942.0,16941.0,0.8962656]
[1673085696582,6.51842126,16942.0,16941.0,0.8962656]
[1673085696973,5.91088026,16942.0,16941.0,0.8962656]
[1673085697239,6.51842126,16942.0,16941.0,0.8962656]
[1673085697491,5.91088026,16942.0,16941.0,0.1962656]
[1673085697741,6.51842126,16942.0,16941.0,0.1962656]
[1673085698548,6.51842126,16942.0,16941.0,0.8962656]
[1673085699021,5.91088026,16942.0,16941.0,0.8962656]
[1673085701468,6.51842126,16942.0,16941.0,0.8962656]
[1673085701976,5.91088026,16942.0,16941.0,0.8962656]
[1673085703814,6.51842126,16942.0,16941.0,0.8962656]
[1673085704086,5.91088026,16942.0,16941.0,0.8962656]
[1673085704445,5.91088026,16942.0,16941.0,0.1962656]
[1673085704905,6.51842126,16942.0,16941.0,0.1962656]
[1673085705700,6.51842126,16942.0,16941.0,0.8962656]
[1673085705958,5.91088026,16942.0,16941.0,0.8962656]
[1673085707238,6.51842126,16942.0,16941.0,0.8962656]
[1673085710571,6.51842126,16942.0,16941.0,0.8962055]
[1673085711582,6.51842126,16942.0,16941.0,0.1962055]
[1673085712614,6.51842126,16942.0,16941.0,0.8962055]
[1673085718537,6.51842126,16942.0,16941.0,0.1962055]
[1673085719634,6.51842126,16942.0,16941.0,0.8962055]
[1673085719896,5.91088026,16942.0,16941.0,0.8962055]
[1673085720141,5.91066089,16942.0,16941.0,0.8962055]
[1673085722385,5.91088026,16942.0,16941.0,0.8962055]
[1673085728235,5.91088026,16942.0,16941.0,0.1962055]
[1673085729246,5.91088026,16942.0,16941.0,0.8962055]
[1673085735444,5.91088026,16942.0,16941.0,0.19612471]
[1673085736516,5.91088026,16942.0,16941.0,0.89612471]
[1673085742257,5.91088026,16942.0,16941.0,0.19612471]
[1673085743262,5.91088026,16942.0,16941.0,0.89612471]
[1673085746843,5.91066089,16942.0,16941.0,0.89612471]
[1673085749222,5.91066089,16942.0,16941.0,0.19612471]
[1673085750159,5.91088026,16942.0,16941.0,0.19612471]
[1673085750398,5.91088026,16942.0,16941.0,0.89612471]
[1673085750618,5.91080585,16942.0,16941.0,0.89612471]
[1673085751747,5.91058648,16942.0,16941.0,0.89612471]
[1673085753440,5.91080585,16942.0,16941.0,0.89612471]
[1673085754190,5.91058648,16942.0,16941.0,0.89612471]
[1673085756510,5.91058648,16942.0,16941.0,0.19612471]
[1673085757547,5.91058648,16942.0,16941.0,0.89612471]
[1673085757799,5.91080585,16942.0,16941.0,0.89612471]
[1673085758531,5.91058648,16942.0,16941.0,0.89612471]
[1673085759831,5.8964436,16942.0,16941.0,0.89612471]
[1673085761635,5.89666297,16942.0,16941.0,0.89612471]
[1673085762921,5.8964436,16942.0,16941.0,0.89612471]
[1673085763334,5.8964436,16942.0,16941.0,0.19612471]
[1673085765056,5.8964436,16942.0,16941.0,0.89612471]
[1673085770547,5.89666297,16942.0,16941.0,0.89612471]
[1673085771627,5.8964436,16942.0,16941.0,0.89612471]
[1673085771882,5.89666297,16942.0,16941.0,0.89612471]
[1673085774042,5.8964436,16942.0,16941.0,0.89612471]
[1673085776610,5.8964436,16942.0,16941.0,0.19612471]
[1673085777375,5.89638135,16942.0,16941.0,0.19612471]
[1673085777632,5.89660072,16942.0,16941.0,0.19612471]
[1673085777891,5.89660072,16942.0,16941.0,0.89612471]
[1673085780367,5.89638135,16942.0,16941.0,0.89612471]
[1673085781408,5.89660072,16942.0,16941.0,0.89612471]
[1673085783151,5.89638135,16942.0,16941.0,0.89612471]
[1673085783915,5.89638135,16942.0,16941.0,0.19612471]
[1673085784184,6.50392235,16942.0,16941.0,0.19612471]
[1673085784680,6.50392235,16942.0,16941.0,0.89612471]
[1673085784925,5.89660072,16942.0,16941.0,0.89612471]
[1673085785174,5.89638135,16942.0,16941.0,0.89612471]
[1673085786195,5.89660072,16942.0,16941.0,0.89612471]
[1673085786446,5.89638135,16942.0,16941.0,0.89612471]
[1673085788611,5.89660072,16942.0,16941.0,0.89612471]
[1673085789347,6.50414172,16942.0,16941.0,0.89612471]
[1673085790096,6.50392235,16942.0,16941.0,0.89612471]
[1673085790593,6.50414172,16942.0,16941.0,0.89612471]
[1673085790866,6.50414172,16942.0,16941.0,0.19612471]
[1673085791098,6.50392235,16942.0,16941.0,0.19612471]
[1673085791842,6.50392235,16942.0,16941.0,0.89612471]
[1673085793104,5.89638135,16942.0,16941.0,0.89612471]
[1673085794312,5.42447191,16942.0,16941.0,0.89612471]
[1673085794561,5.89638135,16942.0,16941.0,0.89612471]
[1673085799522,5.89638135,16942.0,16941.0,0.8960518]
[1673085800258,5.89638135,16942.0,16941.0,0.1960518]
[1673085800515,6.50392235,16942.0,16941.0,0.1960518]
[1673085800774,5.89638135,16942.0,16941.0,0.1960518]
[1673085801373,5.89638135,16942.0,16941.0,0.8960518]
[1673085802118,5.89638135,16942.0,16941.0,1.5035928]
[1673085802613,5.42447191,16942.0,16941.0,1.5035928]
[1673085803116,5.89638135,16942.0,16941.0,1.5035928]
[1673085803340,5.89638135,16942.0,16941.0,0.8960518]
[1673085803571,5.89660072,16942.0,16941.0,0.8960518]
[1673085803821,5.89638135,16942.0,16941.0,0.8960518]
[1673085805012,5.89610199,16942.0,16941.0,0.8960518]
[1673085806325,5.89632136,16942.0,16941.0,0.8960518]
[1673085807060,5.89610199,16942.0,16941.0,0.8960518]
[1673085807329,5.89632136,16942.0,16941.0,0.1960518]
[1673085808371,6.50386236,16942.0,16941.0,0.8960518]
[1673085808668,5.89632136,16942.0,16941.0,0.8960518]
[1673085810102,5.89610199,16942.0,16941.0,0.8960518]
[1673085813999,5.89632136,16942.0,16941.0,0.8960518]
[1673085814291,5.89610199,16942.0,16941.0,0.1960518]
[1673085815549,5.89610199,16942.0,16941.0,0.8960518]
[1673085815816,5.89632136,16942.0,16941.0,0.8960518]
[1673085816064,5.89610199,16942.0,16941.0,0.8960518]
[1673085817558,5.89632136,16942.0,16941.0,0.8960518]
[1673085817809,5.89610199,16942.0,16941.0,0.8960518]
[1673085819062,5.89610199,16942.0,16941.0,1.5035928]
[1673085819560,5.89610199,16942.0,16941.0,0.8960518]
[1673085819814,5.78169942,16942.0,16941.0,0.8960518]
[1673085820579,5.9140435,16942.0,16941.0,0.8960518]
[1673085821343,5.9140435,16942.0,16941.0,0.1960518]
[1673085821598,5.91426287,16942.0,16941.0,0.1960518]
[1673085821869,5.9140435,16942.0,16941.0,0.1960518]
[1673085822393,5.9140435,16942.0,16941.0,0.8960518]
[1673085822654,5.9140435,16942.0,16941.0,1.5035928]
[1673085822907,5.9140435,16942.0,16941.0,0.8960518]
[1673085824407,5.9140435,16942.0,16941.0,1.5035928]
[1673085824662,5.9140435,16942.0,16941.0,0.8960518]
[1673085824916,5.91426287,16942.0,16941.0,0.8960518]
[1673085825453,5.9140435,16942.0,16941.0,0.8960518]
[1673085827974,5.9140435,16942.0,16941.0,0.89596272]
[1673085828483,5.9140435,16942.0,16941.0,0.19596272]
[1673085828730,6.5215845,16942.0,16941.0,0.19596272]
[1673085828977,6.52180387,16942.0,16941.0,0.19596272]
[1673085829227,5.9140435,16942.0,16941.0,0.19596272]
[1673085829490,5.9140435,16942.0,16941.0,0.89596272]
[1673085831008,5.91426287,16942.0,16941.0,0.89596272]
[1673085833296,5.9140435,16942.0,16941.0,0.89596272]
[1673085833547,5.91396172,16942.0,16941.0,0.89596272]
[1673085835401,5.91396172,16942.0,16941.0,0.19596272]
[1673085836447,5.91396172,16942.0,16941.0,0.89596272]
[1673085837284,5.91418109,16942.0,16941.0,0.89596272]
[1673085837552,5.91396172,16942.0,16941.0,0.89596272]
[1673085838562,5.91418109,16942.0,16941.0,0.89596272]
[1673085839655,5.91396172,16942.0,16941.0,0.89596272]
[1673085840710,5.91418109,16942.0,16941.0,0.89596272]
[1673085840953,5.91396172,16942.0,16941.0,0.89596272]
[1673085845616,6.52150272,16942.0,16941.0,0.89596272]
[1673085845861,6.52172209,16942.0,16941.0,0.89596272]
[1673085846381,6.52150272,16942.0,16941.0,0.89596272]
[1673085848607,6.52172209,16942.0,16941.0,0.89596272]
[1673085848935,6.58278331,16942.0,16941.0,0.89596272]
[1673085849431,6.52172209,16942.0,16941.0,0.89596272]
[1673085849714,6.52150272,16942.0,16941.0,0.89596272]
[1673085851534,6.52150272,16942.0,16941.0,0.19596272]
[1673085852556,6.52150272,16942.0,16941.0,0.89596272]
[1673085852806,5.91396172,16942.0,16941.0,0.89596272]
[1673085853811,5.91396172,16942.0,16941.0,0.89703393]
[1673085855039,5.91396172,16942.0,16941.0,0.89596272]
[1673085855524,5.91396172,16942.0,16941.0,0.89584532]
[1673085858508,5.91396172,16942.0,16941.0,0.19584532]
[1673085859502,5.91396172,16942.0,16941.0,0.89584532]
[1673085865471,5.91396172,16942.0,16941.0,0.19584532]
[1673085865724,6.52150272,16942.0,16941.0,0.19584532]
[1673085866516,6.52150272,16942.0,16941.0,0.89584532]
[1673085867253,5.91396172,16942.0,16941.0,0.89584532]
[1673085867761,5.91418109,16942.0,16941.0,0.89584532]
[1673085868003,5.91396172,16942.0,16941.0,0.89584532]
[1673085868771,5.44205228,16942.0,16941.0,0.89584532]
[1673085869792,5.44205228,16942.0,16941.0,1.50338632]
[1673085870538,5.44205228,16942.0,16941.0,0.89584532]
[1673085871278,5.44227165,16942.0,16941.0,0.89584532]
[1673085871532,5.44205228,16942.0,16941.0,0.89584532]
[1673085871830,5.91396172,16942.0,16941.0,0.89584532]
[1673085872345,5.44205228,16942.0,16941.0,0.89584532]
[1673085874183,5.91396172,16942.0,16941.0,0.89584532]
[1673085874431,6.52150272,16942.0,16941.0,0.89584532]
[1673085874950,6.52172209,16942.0,16941.0,0.89584532]
[1673085875229,6.52150272,16942.0,16941.0,0.89584532]
[1673085876021,5.91396172,16942.0,16941.0,0.89584532]
[1673085878032,5.91418109,16942.0,16941.0,0.89584532]
[1673085878052,5.91418109,16942.0,16941.0,0.8957337]
[1673085878547,5.91396172,16942.0,16941.0,0.8957337]
[1673085880846,5.91396172,16942.0,16941.0,0.1957337]
[1673085881337,6.52150272,16942.0,16941.0,0.1957337]
[1673085881848,6.52150272,16942.0,16941.0,0.8957337]
[1673085882097,5.91396172,16942.0,16941.0,0.8957337]
[1673085882349,5.91418109,16942.0,16941.0,0.8957337]
[1673085882605,5.91396172,16942.0,16941.0,0.8957337]
[1673085884614,5.91418109,16942.0,16941.0,0.8957337]
[1673085885091,5.91396172,16942.0,16941.0,0.8957337]
[1673085887037,5.91418109,16942.0,16941.0,0.8957337]
[1673085887288,5.91396172,16942.0,16941.0,0.8957337]
[1673085887795,5.91396172,16942.0,16941.0,1.5032747]
[1673085888059,5.91418109,16942.0,16941.0,0.1957337]
[1673085888842,5.91418109,16942.0,16941.0,0.8957337]
[1673085890290,5.91396172,16942.0,16941.0,0.8957337]
[1673085891254,5.91418109,16942.0,16941.0,0.8957337]
[1673085891505,5.91396172,16942.0,16941.0,0.8957337]
[1673085893789,5.91396172,16942.0,16941.0,1.5032747]
[1673085894037,5.91418109,16942.0,16941.0,0.8957337]
[1673085895043,5.91418109,16942.0,16941.0,0.1957337]
[1673085895293,5.89846262,16942.0,16941.0,0.1957337]
[1673085895780,5.89824325,16942.0,16941.0,0.1957337]
[1673085896023,5.89824325,16942.0,16941.0,0.8957337]
[1673085896782,5.89824325,16942.0,16941.0,1.5032747]
[1673085897270,5.42633381,16942.0,16941.0,1.5032747]
[1673085897527,5.42633381,16942.0,16941.0,0.8957337]
[1673085897778,5.89824325,16942.0,16941.0,0.8957337]
[1673085898275,5.42633381,16942.0,16941.0,0.8957337]
[1673085898542,5.89824325,16942.0,16941.0,1.5032747]
[1673085898801,5.42633381,16942.0,16941.0,1.5032747]
[1673085899034,5.42633381,16942.0,16941.0,0.8957337]
[1673085899322,5.89824325,16942.0,16941.0,0.8957337]
[1673085900313,5.42633381,16942.0,16941.0,0.8957337]
[1673085900567,5.89824325,16942.0,16941.0,0.8957337]
[1673085901078,5.89816183,16942.0,16941.0,0.8957337]
[1673085902082,5.89816183,16942.0,16941.0,0.1957337]
[1673085903115,5.8983812,16942.0,16941.0,0.8957337]
[1673085903358,5.89816183,16942.0,16941.0,0.8957337]
[1673085903874,5.89816183,16942.0,16941.0,1.5032747]
[1673085903875,5.42625239,16942.0,16941.0,1.5032747]
[1673085904375,5.42625239,16942.0,16941.0,0.8957337]
[1673085904634,5.89816183,16942.0,16941.0,0.8957337]
[1673085906163,5.8983812,16942.0,16941.0,0.1957337]
[1673085906442,6.5059222,16942.0,16941.0,0.1957337]
[1673085907017,6.50570283,16942.0,16941.0,0.1957337]
[1673085907702,6.50570283,16942.0,16941.0,0.8957337]
[1673085909019,5.89816183,16942.0,16941.0,0.8957337]
[1673085910521,5.8983812,16942.0,16941.0,0.8957337]
[1673085911036,5.89816183,16942.0,16941.0,0.8957337]
[1673085911526,5.8983812,16942.0,16941.0,0.8957337]
[1673085911784,5.89816183,16942.0,16941.0,0.8957337]
[1673085912533,5.8983812,16942.0,16941.0,0.8957337]
[1673085913552,5.89816183,16942.0,16941.0,0.8957337]
[1673085915033,5.8983812,16942.0,16941.0,0.1957337]
[1673085915286,6.5059222,16942.0,16941.0,0.1957337]
[1673085916273,6.5059222,16942.0,16941.0,0.8957337]
[1673085916771,5.89816183,16942.0,16941.0,0.8957337]
[1673085918624,5.8983812,16942.0,16941.0,0.8957337]
[1673085921594,5.89816183,16942.0,16941.0,0.8957337]
[1673085922109,5.89816183,16942.0,16941.0,0.1957337]
[1673085923179,6.50570283,16942.0,16941.0,0.8957337]
[1673085924844,5.89816183,16942.0,16941.0,0.8957337]
[1673085925859,5.89816183,16942.0,16941.0,0.89565531]
[1673085927979,5.8983812,16942.0,16941.0,0.89565531]
[1673085928518,5.89816183,16942.0,16941.0,0.89565531]
[1673085929256,5.89816183,16942.0,16941.0,0.19565531]
[1673085930294,5.89816183,16942.0,16941.0,0.89565531]
[1673085930517,5.8983812,16942.0,16941.0,0.89565531]
[1673085930802,5.89816183,16942.0,16941.0,0.89565531]
[1673085932576,5.8983812,16942.0,16941.0,0.89565531]
[1673085932833,5.89816183,16942.0,16941.0,0.89565531]
[1673085933691,5.8983812,16942.0,16941.0,0.89565531]
[1673085934985,5.89816183,16942.0,16941.0,0.89565531]
[1673085936289,5.89816183,16942.0,16941.0,0.19565531]
[1673085937288,5.89816183,16942.0,16941.0,0.89565531]
[1673085938555,5.8983812,16942.0,16941.0,0.89565531]
[1673085938814,5.89816183,16942.0,16941.0,0.89565531]
[1673085940378,5.8983812,16942.0,16941.0,0.89565531]
[1673085940903,5.89816183,16942.0,16941.0,0.89565531]
[1673085941347,5.8983812,16942.0,16941.0,0.89565531]
[1673085941598,6.5059222,16942.0,16941.0,0.89565531]
[1673085943036,6.50570283,16942.0,16941.0,0.89565531]
[1673085943288,6.50570283,16942.0,16941.0,0.19565531]
[1673085944275,6.50570283,16942.0,16941.0,0.89565531]
[1673085944534,5.89816183,16942.0,16941.0,0.89565531]
[1673085947801,5.89816183,16942.0,16941.0,0.89556965]
[1673085949408,5.8983812,16942.0,16941.0,0.89556965]
[1673085949668,5.89816183,16942.0,16941.0,0.89556965]
[1673085949927,6.50570283,16942.0,16941.0,0.89556965]
[1673085950188,6.50570283,16942.0,16941.0,0.19556965]
[1673085951250,6.50570283,16942.0,16941.0,0.89556965]
[1673085951504,5.89816183,16942.0,16941.0,0.89556965]
[1673085953369,5.89816183,16942.0,16941.0,0.89522465]
[1673085957185,5.89816183,16942.0,16941.0,0.19522465]
[1673085959210,6.5059222,16942.0,16941.0,0.74522465]
[1673085959747,5.8983812,16942.0,16941.0,0.74522465]
[1673085960019,5.89816183,16942.0,16941.0,0.74522465]
[1673085960837,6.50570283,16942.0,16941.0,0.74522465]
[1673085962348,6.5059222,16942.0,16941.0,0.74522465]
[1673085963679,6.50570283,16942.0,16941.0,0.74522465]
[1673085964187,5.89816183,16942.0,16941.0,0.74522465]
[1673085965205,5.42625239,16942.0,16941.0,1.84680857]
[1673085965722,5.42625239,16942.0,16941.0,1.23926757]
[1673085966480,4.89572797,16942.0,16941.0,1.84680857]
[1673085966986,4.89572797,16942.0,16941.0,1.23926757]
[1673085967228,4.89594734,16942.0,16941.0,1.23926757]
[1673085967479,4.89572797,16942.0,16941.0,0.74522465]
[1673085967726,5.42625239,16942.0,16941.0,0.74522465]
[1673085967980,5.89495867,16942.0,16941.0,0.74522465]
[1673085968488,6.50271904,16942.0,16941.0,0.74522465]
[1673085972873,6.50249967,16942.0,16941.0,0.74522465]
[1673085973367,5.89495867,16942.0,16941.0,0.74522465]
[1673085974637,6.50249967,16942.0,16941.0,0.74522465]
[1673085974919,5.89495867,16942.0,16941.0,0.74522465]
[1673085975821,5.89495867,16942.0,16941.0,0.04522465]
[1673085976054,6.50249967,16942.0,16941.0,0.04522465]
[1673085976302,6.50271904,16942.0,16941.0,0.04522465]
[1673085976771,6.50271904,16942.0,16941.0,0.74522465]
[1673085977007,5.89495867,16942.0,16941.0,0.74522465]
[1673085977243,5.42625239,16942.0,16941.0,0.74522465]
[1673085978634,5.42647176,16942.0,16941.0,0.74522465]
[1673085978877,5.42625239,16942.0,16941.0,0.74522465]
[1673085979603,5.42647176,16942.0,16941.0,0.74522465]
[1673085981874,5.42625239,16942.0,16941.0,0.74522465]
[1673085982619,5.42647176,16942.0,16941.0,0.74522465]
[1673085982877,5.42625239,16942.0,16941.0,0.0451571]
[1673085983701,5.42647176,16942.0,16941.0,0.0451571]
[1673085983990,5.42647176,16942.0,16941.0,0.7451571]
[1673085985196,5.42625239,16942.0,16941.0,0.7451571]
[1673085987187,5.42647176,16942.0,16941.0,0.7451571]
[1673085987940,5.89517804,16942.0,16941.0,0.7451571]
[1673085989748,5.89495867,16942.0,16941.0,0.0451571]
[1673085990857,5.89495867,16942.0,16941.0,0.7451571]
[1673085993543,5.89517804,16942.0,16941.0,0.7451571]
[1673085995299,5.89495867,16942.0,16941.0,0.7451571]
[1673085995572,5.89517804,16942.0,16941.0,0.7451571]
[1673085995829,5.89495867,16942.0,16941.0,0.7451571]
[1673085996073,5.42625239,16942.0,16941.0,0.7451571]
[1673085996315,5.89495867,16942.0,16941.0,0.7451571]
[1673085996812,5.89517804,16942.0,16941.0,0.0451571]
[1673085997059,5.89495867,16942.0,16941.0,0.0451571]
[1673085997807,5.89495867,16942.0,16941.0,0.7451571]
[1673085998538,5.42625239,16942.0,16941.0,0.7451571]
[1673085998794,5.89495867,16942.0,16941.0,0.7451571]
[1673085999019,5.42625239,16942.0,16941.0,0.7451571]
[1673085999272,5.89495867,16942.0,16941.0,0.7451571]
[1673085999984,5.89517804,16942.0,16941.0,0.7451571]
[1673086001874,5.89495867,16942.0,16941.0,0.7451571]
[1673086002369,5.89517804,16942.0,16941.0,0.7451571]
[1673086003439,5.89495867,16942.0,16941.0,0.7451571]
[1673086003697,5.89517804,16942.0,16941.0,0.7451571]